bitfinex/quotes_SOLUSD_20240905
["timestamp","ask_amount","ask_price","bid_price","bid_amount"]
[1725568359574,9.12320913,128.7,128.67,24.3993]
[1725568359891,9.12320913,128.7,128.67,16.6277]
[1725568362851,9.12320913,128.7,128.67,24.3991]
[1725568362852,1.35320913,128.7,128.67,24.3991]
[1725568363974,1.35320913,128.7,128.68,7.7712]
[1725568364177,1.35320913,128.7,128.69,7.7706]
[1725568364386,1.35320913,128.7,128.69,52.7706]
[1725568364762,7.7677,128.74,128.7,7.7696]
[1725568364953,1.65813917,128.76,128.69,45.0]
[1725568365155,7.7676,128.74,128.7,7.7696]
[1725568366477,7.7676,128.74,128.69,19.425]
[1725568366478,7.7683,128.73,128.69,27.1953]
[1725568366978,9.42693917,128.72,128.69,19.425]
[1725568367166,7.7688,128.72,128.69,19.425]
[1725568367559,1.35294482,128.71,128.69,19.425]
[1725568371981,9.12234482,128.71,128.68,52.7709]
[1725568372293,9.12234482,128.71,128.68,7.7709]
[1725568372980,7.7702,128.7,128.67,43.8288]
[1725568373160,9.12264482,128.71,128.67,43.8288]
[1725568376873,1.65813917,128.72,128.67,43.8288]
[1725568377076,1.35311274,128.7,128.67,43.8288]
[1725568378788,1.35311274,128.7,128.68,9.32512844]
[1725568379290,1.35311274,128.7,128.68,7.7711]
[1725568381393,1.35311274,128.7,128.65,35.0106631]
[1725568381567,1.35311274,128.7,128.65,19.4322]
[1725568381765,1.35311274,128.7,128.66,5.78904064]
[1725568382000,1.35311274,128.7,128.65,24.60111859]
[1725568382179,1.65813917,128.71,128.65,29.77021226]
[1725568382379,7.7706,128.69,128.66,7.7721]
[1725568383085,7.7714,128.68,128.65,32.37381859]
[1725568383392,7.7714,128.68,128.66,9.73762183]
[1725568383577,21.08163917,128.71,128.65,5.16891859]
[1725568383578,7.7718,128.67,128.65,5.16891859]
[1725568383780,21.08163917,128.71,128.65,5.16891859]
[1725568383781,7.7724,128.66,128.65,5.16891859]
[1725568384169,27.7724,128.66,128.65,5.16891859]
[1725568384900,20.0,128.66,128.65,5.16891859]
[1725568387577,7.7704,128.7,128.66,7.7723]
[1725568387777,20.0,128.69,128.66,1.55427159]
[1725568387985,7.7704,128.7,128.66,23.2453]
[1725568388306,7.77,128.7,128.66,23.2455]
[1725568389177,20.0,128.69,128.66,23.2455]
[1725568389499,20.0,128.69,128.67,7.7718]
[1725568389703,21.35319536,128.7,128.67,7.7718]
[1725568390206,1.35319536,128.7,128.68,7.7711]
[1725568390703,7.7689,128.72,128.68,7.7711]
[1725568391001,3.01126328,128.71,128.68,7.7711]
[1725568391182,10.78066328,128.71,128.67,7.7715]
[1725568391382,9.12252411,128.71,128.67,7.7715]
[1725568392791,1.35312411,128.71,128.68,7.771]
[1725568392992,21.35312411,128.71,128.68,7.771]
[1725568393996,1.35312411,128.71,128.69,9.32408491]
[1725568394386,1.35312411,128.71,128.7,7.77]
[1725568395008,1.35312411,128.71,128.69,7.7703]
[1725568397894,1.35312411,128.71,128.7,7.77]
[1725568398702,1.35312411,128.71,128.7,52.77]
[1725568400984,1.35312411,128.71,128.68,27.1971]
[1725568401314,7.7716,128.68,128.63,7.7741]
[1725568401503,7.7714,128.68,128.63,7.7741]
[1725568401691,20.0,128.67,128.63,7.7741]
[1725568403188,27.7719,128.67,128.63,7.7741]
[1725568405109,1.65813917,128.66,128.63,7.7741]
[1725568407491,27.7719,128.67,128.63,7.7741]
[1725568411294,29.12491442,128.67,128.63,7.7741]
[1725568412336,9.12491442,128.67,128.63,7.7741]
[1725568415194,7.7754,128.61,128.6,9.73947329]
[1725568415433,7.775,128.62,128.58,16.5085]
[1725568415598,1.65813917,128.61,128.56,0.8391705]
[1725568415918,7.7778,128.57,128.56,0.8391705]
[1725568416129,27.7778,128.57,128.56,0.8391705]
[1725568418313,20.0,128.57,128.56,0.8391705]
[1725568418517,21.65813917,128.57,128.56,0.8391705]
[1725568418731,21.65813917,128.57,128.52,35.9598]
[1725568418934,20.0,128.56,128.52,19.4513]
[1725568419142,1.65813917,128.55,128.52,19.4513]
[1725568419503,27.7787,128.56,128.52,19.4513]
[1725568420222,20.0,128.56,128.52,27.232]
[1725568420423,21.65813917,128.56,128.52,27.232]
[1725568421712,20.0,128.56,128.52,19.4513]
[1725568421908,20.0,128.57,128.52,19.4513]
[1725568423135,20.0,128.57,128.53,7.7801]
[1725568423921,1.65813917,128.56,128.52,27.2317]
[1725568424318,1.65813917,128.59,128.52,27.2317]
[1725568424840,7.778,128.57,128.53,7.7802]
[1725568425037,20.0,128.56,128.53,7.7802]
[1725568425737,20.0,128.56,128.54,7.7795]
[1725568426045,27.778,128.57,128.53,7.7802]
[1725568426336,1.65813917,128.56,128.53,7.7802]
[1725568426512,27.778,128.57,128.53,7.7802]
[1725568429919,20.0,128.57,128.55,7.779]
[1725568430126,7.7771,128.59,128.55,7.779]
[1725568430439,21.65813917,128.58,128.55,7.779]
[1725568431132,20.0,128.58,128.56,7.7783]
[1725568431317,20.0,128.59,128.56,7.7783]
[1725568431518,1.35429901,128.58,128.56,7.7783]
[1725568432239,7.7782,128.57,128.54,19.4491]
[1725568435125,1.65813917,128.56,128.54,19.4491]
[1725568435544,9.43633917,128.57,128.54,19.4491]
[1725568436531,7.7782,128.57,128.54,27.2287]
[1725568439847,10.78993818,128.58,128.54,27.2287]
[1725568440044,20.0,128.57,128.54,27.2287]
[1725568440244,27.7778,128.57,128.54,27.2287]
[1725568440545,27.7778,128.57,128.54,19.4491]
[1725568440738,20.0,128.57,128.54,19.4491]
[1725568444555,20.0,128.57,128.54,27.2287]
[1725568444945,1.35429901,128.58,128.57,7.7778]
[1725568445141,1.35429901,128.58,128.57,23.5345]
[1725568445350,1.35429901,128.58,128.57,68.5345]
[1725568446658,1.35429901,128.58,128.57,15.7567]
[1725568447156,1.35429901,128.58,128.57,23.5345]
[1725568447548,27.7757,128.61,128.58,7.7769]
[1725568447549,20.0,128.61,128.58,7.7769]
[1725568447750,1.35406888,128.6,128.58,7.7769]
[1725568448857,1.35406888,128.6,128.58,27.22]
[1725568450555,1.35406888,128.6,128.58,19.4431]
[1725568451444,1.35406888,128.6,128.57,23.5343]
[1725568452662,30.78820805,128.6,128.56,19.4459]
[1725568452834,10.78820805,128.6,128.56,19.4459]
[1725568453454,10.78820805,128.6,128.56,27.224]
[1725568453653,9.13006888,128.6,128.56,27.224]
[1725568454241,7.776,128.6,128.56,27.224]
[1725568458565,7.7776,128.58,128.54,22.35411923]
[1725568458774,7.7769,128.59,128.54,16.5603]
[1725568458943,20.0,128.58,128.54,16.5603]
[1725568460145,20.0,128.58,128.55,7.7789]
[1725568461759,1.35444795,128.57,128.55,7.7789]
[1725568462947,1.35444795,128.57,128.54,24.3397]
[1725568463143,1.35444795,128.57,128.55,5.7940811]
[1725568463351,1.35444795,128.57,128.54,27.09371958]
[1725568463544,1.35444795,128.57,128.55,5.79408242]
[1725568463750,1.35444795,128.57,128.54,24.3397]
[1725568463955,1.35444795,128.57,128.55,5.79408242]
[1725568464162,1.35444795,128.57,128.54,24.3397]
[1725568464356,1.35444795,128.57,128.55,5.79408242]
[1725568464564,1.35444795,128.57,128.54,24.3397]
[1725568464762,1.35444795,128.57,128.55,5.79408242]
[1725568464967,7.7796,128.54,128.53,20.76925762]
[1725568465163,3.01258712,128.57,128.53,5.79475992]
[1725568465348,3.01258712,128.57,128.51,15.331]
[1725568465671,7.7787,128.56,128.52,5.79538387]
[1725568465858,7.7787,128.56,128.51,23.112]
[1725568466055,7.7787,128.56,128.52,5.7955827]
[1725568466371,7.7787,128.56,128.51,23.112]
[1725568466667,7.7787,128.56,128.52,5.79546307]
[1725568466974,1.65813917,128.55,128.51,23.112]
[1725568467266,1.65813917,128.55,128.52,5.79546175]
[1725568467471,9.43723917,128.55,128.51,23.112]
[1725568467647,7.7791,128.55,128.52,5.7954644]
[1725568467849,7.7791,128.55,128.51,23.112]
[1725568468069,7.7791,128.55,128.52,5.7954644]
[1725568468375,7.7791,128.55,128.51,23.112]
[1725568468576,7.7791,128.55,128.52,5.79546307]
[1725568468750,7.7791,128.55,128.51,23.112]
[1725568468950,7.7791,128.55,128.52,5.7954644]
[1725568469162,7.7791,128.55,128.51,23.112]
[1725568469363,7.7791,128.55,128.52,5.79546307]
[1725568469654,7.7791,128.55,128.51,23.112]
[1725568469849,7.7791,128.55,128.52,5.79546307]
[1725568470056,7.7791,128.55,128.51,23.112]
[1725568470374,7.7791,128.55,128.52,5.79546643]
[1725568470554,7.7791,128.55,128.51,23.112]
[1725568470879,7.7791,128.55,128.52,5.7954644]
[1725568471056,7.7791,128.55,128.51,23.112]
[1725568471371,7.7791,128.55,128.52,5.79550107]
[1725568471552,7.7791,128.55,128.51,23.112]
[1725568471752,7.7791,128.55,128.52,5.7954644]
[1725568471963,7.7791,128.55,128.51,23.112]
[1725568472167,7.7791,128.55,128.52,5.7954644]
[1725568472382,7.7791,128.55,128.51,23.112]
[1725568472559,7.7789,128.56,128.51,23.112]
[1725568472771,10.79048712,128.57,128.52,70.24759997]
[1725568472966,20.0,128.56,128.52,64.4517]
[1725568474274,20.0,128.56,128.53,7.7801]
[1725568475775,20.0,128.56,128.52,64.4517]
[1725568475776,27.7784,128.56,128.52,72.2323]
[1725568476154,27.7784,128.56,128.52,27.2323]
[1725568476358,1.65813917,128.55,128.52,27.2323]
[1725568476677,27.7784,128.56,128.52,27.2323]
[1725568477170,1.65813917,128.55,128.52,27.2323]
[1725568478878,27.7784,128.56,128.52,27.2323]
[1725568480273,1.65813917,128.55,128.52,27.2323]
[1725568481576,27.7784,128.56,128.52,27.2323]
[1725568481879,1.65813917,128.55,128.52,27.2323]
[1725568482063,1.3542823,128.55,128.52,27.2323]
[1725568483559,3.01242147,128.55,128.52,27.2323]
[1725568483759,1.3542823,128.55,128.52,27.2323]
[1725568484276,3.01242147,128.55,128.52,27.2323]
[1725568485382,1.3542823,128.55,128.52,27.2323]
[1725568486759,1.3542823,128.55,128.53,7.7801]
[1725568488080,1.3542823,128.55,128.54,28.78440696]
[1725568488283,1.3542823,128.55,128.54,78.02302629]
[1725568488587,27.7768,128.59,128.55,7.7788]
[1725568488784,1.35390689,128.58,128.55,7.7788]
[1725568489967,1.35390689,128.58,128.56,7.7783]
[1725568491483,20.0,128.59,128.57,7.7778]
[1725568492403,20.0,128.59,128.56,7.7781]
[1725568492566,27.7766,128.59,128.56,7.7781]
[1725568494565,1.35410679,128.58,128.56,7.7781]
[1725568496592,1.35410679,128.58,128.55,19.4462]
[1725568496897,3.01224596,128.58,128.55,7.7788]
[1725568498570,1.35410679,128.58,128.55,7.7788]
[1725568498771,1.35410679,128.58,128.57,7.7778]
[1725568499093,1.35410679,128.58,128.57,13.57173775]
[1725568499282,20.0,128.62,128.58,7.7769]
[1725568499283,7.7748,128.62,128.58,7.7769]
[1725568499588,7.7748,128.62,128.59,7.7765]
[1725568500291,9.43253917,128.63,128.6,7.776]
[1725568500471,1.65813917,128.66,128.62,7.7747]
[1725568500671,7.7732,128.65,128.61,7.7752]
[1725568500998,1.65813917,128.64,128.61,27.2137]
[1725568501873,29.43173917,128.64,128.61,27.2137]
[1725568502073,27.7736,128.64,128.61,27.2137]
[1725568502274,1.35339129,128.63,128.61,27.2137]
[1725568503584,1.35339129,128.63,128.62,9.32961573]
[1725568503781,1.35339129,128.63,128.62,54.32961573]
[1725568503988,1.35339129,128.63,128.62,52.7748]
[1725568504493,7.7718,128.67,128.63,7.7739]
[1725568504696,1.35328861,128.65,128.63,7.7739]
[1725568507476,3.01142778,128.65,128.62,7.7745]
[1725568507681,10.78442778,128.65,128.61,43.1904]
[1725568508196,3.01142778,128.65,128.59,19.4414]
[1725568508405,7.7743,128.63,128.59,27.2177]
[1725568508574,3.01142778,128.65,128.59,27.2177]
[1725568508575,27.7749,128.62,128.59,27.2177]
[1725568513307,27.7749,128.62,128.59,19.4414]
[1725568515089,1.65813917,128.61,128.52,6.2617]
[1725568515295,7.7788,128.56,128.52,33.4943]
[1725568515596,7.7776,128.58,128.54,19.4491]
[1725568515993,1.65813917,128.6,128.54,27.2283]
[1725568516186,1.65813917,128.61,128.54,27.2283]
[1725568516390,7.7776,128.58,128.54,27.2283]
[1725568516783,7.7776,128.58,128.55,45.0]
[1725568517192,7.7769,128.59,128.55,52.7789]
[1725568517501,7.7773,128.58,128.55,52.7789]
[1725568517801,7.7773,128.58,128.55,45.0]
[1725568518002,7.7773,128.58,128.54,27.2285]
[1725568518500,7.7781,128.57,128.54,19.4491]
[1725568518891,7.7776,128.58,128.54,27.2287]
[1725568519085,7.7776,128.58,128.55,1.5555752]
[1725568519584,7.7776,128.58,128.54,27.2287]
[1725568520605,7.7771,128.59,128.55,7.7789]
[1725568521023,7.7774,128.58,128.54,27.2283]
[1725568521228,7.7774,128.58,128.55,45.0]
[1725568526421,1.35411339,128.59,128.57,7.7778]
[1725568526596,1.35411339,128.59,128.56,27.2229]
[1725568526791,1.35411339,128.59,128.57,45.0]
[1725568527213,1.35411339,128.59,128.56,27.2229]
[1725568527437,9.13071339,128.59,128.56,27.2229]
[1725568528110,10.78885256,128.59,128.56,19.4447]
[1725568529412,10.78885256,128.59,128.55,23.6693]
[1725568531129,9.13071339,128.59,128.55,23.6693]
[1725568531323,9.13071339,128.59,128.55,15.8905]
[1725568531508,1.35411339,128.59,128.56,9.33363152]
[1725568531702,1.35411339,128.59,128.57,7.7778]
[1725568534527,1.35411339,128.59,128.56,7.7782]
[1725568534723,9.13091339,128.59,128.55,43.1155]
[1725568534931,7.7773,128.58,128.55,43.1155]
[1725568536221,7.7773,128.58,128.55,27.225]
[1725568536408,10.78915256,128.59,128.55,27.225]
[1725568537012,9.13101339,128.59,128.56,1.5554542]
[1725568537318,9.13101339,128.59,128.56,9.3338542]
[1725568538223,1.35411339,128.59,128.56,19.4446]
[1725568539034,1.35411339,128.59,128.57,7.7777]
[1725568546830,27.7761,128.6,128.57,7.7777]
[1725568554144,20.0,128.6,128.58,7.7771]
[1725568554325,20.0,128.6,128.59,1.55524348]
[1725568554528,7.775,128.62,128.59,1.55524348]
[1725568555331,7.7744,128.63,128.6,1.45230367]
[1725568555526,7.7737,128.64,128.6,1.45230367]
[1725568555924,20.0,128.63,128.6,9.33064463]
[1725568556224,1.65813917,128.66,128.61,65.99284929]
[1725568556451,7.7728,128.66,128.62,15.915]
[1725568556631,7.7719,128.67,128.63,9.3281194]
[1725568557534,7.7719,128.67,128.63,7.7736]
[1725568557738,1.35350617,128.66,128.63,7.7736]
[1725568558857,21.35350617,128.66,128.63,7.7736]
[1725568560845,21.35350617,128.66,128.62,15.915]
[1725568560846,29.12590617,128.66,128.62,23.6896]
[1725568561051,1.65813917,128.65,128.62,23.6896]
[1725568561954,9.43113917,128.65,128.62,23.6896]
[1725568562328,9.43113917,128.65,128.62,15.915]
[1725568563036,7.773,128.65,128.62,15.915]
[1725568563363,21.35350617,128.66,128.62,23.6897]
[1725568563364,29.12610617,128.66,128.62,23.6897]
[1725568563539,29.12610617,128.66,128.62,15.915]
[1725568563733,29.12610617,128.66,128.62,23.6894]
[1725568567061,1.65813917,128.65,128.58,15.6701]
[1725568567262,1.65813917,128.64,128.58,15.6701]
[1725568567483,7.7749,128.62,128.58,15.6701]
[1725568567637,21.65813917,128.61,128.58,15.6701]
[1725568568134,29.43363917,128.61,128.58,15.6701]
[1725568568331,9.43413917,128.6,128.58,15.6701]
[1725568568546,7.776,128.6,128.58,15.6701]
[1725568569162,20.0,128.61,128.58,15.6701]
[1725568569163,27.7754,128.61,128.58,15.6701]
[1725568573975,9.43433917,128.6,128.58,15.6701]
[1725568575066,9.43433917,128.6,128.55,30.6519]
[1725568575574,11.64565717,128.6,128.55,30.6519]
[1725568576646,1.35413022,128.59,128.55,30.6519]
[1725568577151,9.987518,128.6,128.56,9.33359081]
[1725568577376,9.987518,128.6,128.56,7.7783]
[1725568579050,11.64565717,128.6,128.56,7.7783]
[1725568579459,20.0,128.59,128.55,22.8731]
[1725568579663,7.7776,128.58,128.55,22.8731]
[1725568579849,20.0,128.57,128.55,22.8731]
[1725568580057,21.35382734,128.57,128.55,22.8731]
[1725568583265,21.35382734,128.57,128.55,30.6521]
[1725568583266,1.35382734,128.57,128.55,30.6521]
[1725568584088,1.35382734,128.57,128.55,22.8731]
[1725568588166,1.35382734,128.57,128.55,30.652]
[1725568590767,1.35382734,128.57,128.56,7.7784]
[1725568591658,1.35382734,128.57,128.56,52.7784]
[1725568592078,20.0,128.58,128.56,52.7784]
[1725568592554,2.211318,128.6,128.57,1.55534071]
[1725568592753,2.211318,128.6,128.59,7.7766]
[1725568593971,2.211318,128.6,128.59,27.2182]
[1725568598181,2.211318,128.6,128.59,42.5792]
[1725568598484,2.211318,128.6,128.59,93.5931]
[1725568599055,2.211318,128.6,128.59,108.49096483]
[1725568599263,2.211318,128.6,128.59,93.5931]
[1725568602463,2.211318,128.6,128.59,95.14789358]
[1725568603083,1.35400417,128.61,128.6,57.776]
[1725568603261,1.35400417,128.61,128.6,104.33032584]
[1725568603459,7.7707,128.69,128.65,7.7729]
[1725568603665,7.7707,128.69,128.66,1.55422264]
[1725568603882,7.7707,128.69,128.65,7.7729]
[1725568604089,1.65813917,128.71,128.64,19.4339]
[1725568604090,7.7702,128.7,128.66,27.2033]
[1725568604478,7.7706,128.69,128.66,27.2033]
[1725568604674,7.7713,128.68,128.64,33.3722]
[1725568604866,7.7713,128.68,128.64,27.2073]
[1725568605379,7.7713,128.68,128.64,19.434]
[1725568605889,7.7713,128.68,128.64,27.2075]
[1725568606366,1.353466,128.67,128.64,27.2075]
[1725568606756,1.353466,128.67,128.63,15.6207]
[1725568606757,9.125266,128.67,128.63,15.6207]
[1725568608383,7.7724,128.66,128.61,19.4371]
[1725568609282,7.7724,128.66,128.62,7.7745]
[1725568610178,9.125466,128.67,128.62,7.7745]
[1725568613599,1.353466,128.67,128.64,7.7735]
[1725568613896,21.353466,128.67,128.64,7.7735]
[1725568614602,1.353466,128.67,128.66,7.7724]
[1725568614771,1.353466,128.67,128.66,52.7724]
[1725568614965,1.65813917,128.76,128.66,52.7724]
[1725568615200,7.7689,128.72,128.67,65.98304601]
[1725568615401,7.7689,128.72,128.68,1.55374158]
[1725568615705,7.7689,128.72,128.67,64.4293]
[1725568616270,7.7689,128.72,128.68,7.7712]
[1725568616472,20.0,128.71,128.68,7.7712]
[1725568616783,21.35300672,128.71,128.68,7.7712]
[1725568618801,1.35300672,128.71,128.68,7.7712]
[1725568618977,1.35300672,128.71,128.7,7.77]
[1725568619379,1.35300672,128.71,128.7,9.22026155]
[1725568619604,1.35300672,128.71,128.7,52.77]
[1725568619904,1.35300672,128.71,128.7,70.66355276]
[1725568620197,1.65813917,128.78,128.72,7.7687]
[1725568620377,1.35251542,128.74,128.72,7.7687]
[1725568620579,7.7664,128.76,128.72,7.7687]
[1725568620806,7.7664,128.76,128.71,7.7692]
[1725568621099,1.35246452,128.74,128.72,45.0]
[1725568621402,1.35246452,128.74,128.72,52.7686]
[1725568624697,1.35246452,128.74,128.73,7.7681]
[1725568624897,1.35246452,128.74,128.73,52.7681]
[1725568630108,1.35246452,128.74,128.73,72.1885]
[1725568633082,1.35246452,128.74,128.73,64.4204]
[1725568633292,1.35246452,128.74,128.71,7.7688]
[1725568633511,1.35246452,128.74,128.7,35.7641]
[1725568633512,1.35246452,128.74,128.72,7.7687]
[1725568633687,1.35246452,128.74,128.71,7.7691]
[1725568634596,1.35246452,128.74,128.72,7.7687]
[1725568635509,1.35246452,128.74,128.73,52.7681]
[1725568640924,21.65813917,128.8,128.72,19.4217]
[1725568640925,1.65813917,128.77,128.72,19.4217]
[1725568641090,21.65813917,128.78,128.72,19.4217]
[1725568641293,7.7667,128.76,128.72,27.19]
[1725568641494,7.767,128.75,128.71,7.7693]
[1725568641689,7.7683,128.73,128.7,35.765]
[1725568642719,7.7677,128.74,128.7,43.5349]
[1725568643108,7.7677,128.74,128.71,45.0]
[1725568643709,1.35272616,128.73,128.71,45.0]
[1725568644392,1.35272616,128.73,128.72,7.7688]
[1725568644596,1.35272616,128.73,128.72,52.7688]
[1725568651904,1.35272616,128.73,128.72,45.0]
[1725568652219,1.35272616,128.73,128.71,19.4221]
[1725568656937,1.35272616,128.73,128.71,27.1914]
[1725568662235,1.35272616,128.73,128.72,7.7688]
[1725568662412,1.35272616,128.73,128.72,54.32214525]
[1725568664328,1.35272616,128.73,128.72,60.08417828]
[1725568665531,1.35272616,128.73,128.72,58.53083303]
[1725568665733,1.35272616,128.73,128.72,90.52940416]
[1725568665928,7.7656,128.78,128.74,7.7675]
[1725568666120,7.7656,128.78,128.75,1.55304808]
[1725568666516,7.7656,128.78,128.75,7.7669]
[1725568667730,7.7648,128.79,128.75,7.7669]
[1725568667917,20.0,128.78,128.75,7.7669]
[1725568668934,1.35231419,128.77,128.75,7.7669]
[1725568677411,1.35231419,128.77,128.71,19.4223]
[1725568677635,7.7678,128.74,128.72,5.76433331]
[1725568677841,22.42515336,128.77,128.71,9.73263099]
[1725568678135,22.42515336,128.77,128.72,5.76657014]
[1725568678136,7.7681,128.73,128.72,5.76657014]
[1725568679147,7.7681,128.73,128.7,23.8553]
[1725568679442,7.7681,128.73,128.71,5.76740325]
[1725568679613,7.7681,128.73,128.72,5.76740325]
[1725568681252,7.7681,128.73,128.7,16.0853]
[1725568681546,7.7681,128.73,128.71,5.76468118]
[1725568681727,7.7681,128.73,128.7,16.0853]
[1725568681929,7.7681,128.73,128.71,5.7649994]
[1725568682125,7.7681,128.73,128.7,16.0853]
[1725568682925,7.7681,128.73,128.71,5.76542105]
[1725568683137,7.7681,128.73,128.7,16.0853]
[1725568684349,21.65813917,128.76,128.7,16.0853]
[1725568684350,7.769,128.72,128.7,16.0853]
[1725568684722,7.7683,128.73,128.7,16.0853]
[1725568688041,7.7677,128.74,128.7,23.8552]
[1725568688859,7.7682,128.73,128.7,23.8552]
[1725568689349,9.12095883,128.73,128.7,23.8552]
[1725568689857,1.35275883,128.73,128.7,23.8552]
[1725568690037,7.7678,128.74,128.71,46.55337076]
[1725568690347,7.7678,128.74,128.71,45.0]
[1725568690854,7.7678,128.74,128.71,52.7693]
[1725568692257,7.7678,128.74,128.71,45.0]
[1725568692574,7.7682,128.73,128.7,16.0853]
[1725568693060,1.35285702,128.72,128.7,16.0853]
[1725568695543,1.35285702,128.72,128.7,23.8552]
[1725568695751,1.35285702,128.72,128.71,45.0]
[1725568695953,1.35285702,128.72,128.7,23.8552]
[1725568697770,1.35285702,128.72,128.71,54.32295478]
[1725568698760,1.35285702,128.72,128.71,45.0]
[1725568699658,1.35285702,128.72,128.71,52.7694]
[1725568704164,1.35285702,128.72,128.71,45.0]
[1725568704747,1.35285702,128.72,128.65,6.4452]
[1725568704955,7.7718,128.67,128.66,5.76173789]
[1725568705156,20.0,128.67,128.64,9.73574957]
[1725568705342,20.0,128.66,128.63,15.8324]
[1725568705547,20.0,128.66,128.64,5.76662286]
[1725568705853,20.0,128.66,128.63,15.8324]
[1725568706055,7.7736,128.64,128.6,27.2147]
[1725568707552,7.7731,128.65,128.61,52.7752]
[1725568707745,7.7731,128.65,128.62,1.55452446]
[1725568708954,7.7726,128.66,128.62,7.7747]
[1725568713258,1.35356812,128.65,128.62,7.7747]
[1725568713470,1.35356812,128.65,128.62,69.4367]
[1725568713666,1.35356812,128.65,128.64,7.7736]
[1725568713884,1.35356812,128.65,128.64,52.7736]
[1725568714960,1.35356812,128.65,128.63,7.7739]
[1725568716786,1.35356812,128.65,128.64,104.32798512]
[1725568716977,1.35356812,128.65,128.64,69.2781]
[1725568724689,1.35356812,128.65,128.64,120.83228468]
[1725568725080,1.35356812,128.65,128.64,119.2781]
[1725568726672,1.35356812,128.65,128.64,132.62133011]
[1725568726880,7.7691,128.72,128.68,7.7707]
[1725568727271,1.3529483,128.71,128.68,7.7707]
[1725568727891,1.3529483,128.71,128.69,1.5537476]
[1725568729100,1.3529483,128.71,128.7,7.77]
[1725568729390,7.7664,128.76,128.71,7.7688]
[1725568729790,7.7664,128.76,128.72,45.0]
[1725568730183,7.7664,128.76,128.72,52.7687]
[1725568730573,20.0,128.75,128.72,52.7687]
[1725568730995,27.767,128.75,128.71,7.7692]
[1725568731171,9.12037435,128.74,128.71,7.7692]
[1725568737398,9.12037435,128.74,128.71,9.32273483]
[1725568738291,9.12037435,128.74,128.71,7.7692]
[1725568740715,1.35277435,128.74,128.71,7.7692]
[1725568742016,9.12037435,128.74,128.71,7.7692]
[1725568743388,7.7683,128.73,128.7,27.1932]
[1725568744395,9.12057435,128.74,128.7,27.1932]
[1725568745512,1.35277435,128.74,128.72,7.7687]
[1725568745714,1.35277435,128.74,128.73,1.55338046]
[1725568746095,1.35277435,128.74,128.72,45.0]
[1725568746802,1.35277435,128.74,128.72,46.55327847]
[1725568747403,1.35277435,128.74,128.73,7.7681]
[1725568748315,1.35277435,128.74,128.73,52.7681]
[1725568762826,9.12077435,128.74,128.7,27.1945]
[1725568763128,7.768,128.74,128.7,27.1945]
[1725568766132,1.35283748,128.73,128.7,27.1945]
[1725568768018,1.35283748,128.73,128.7,19.4248]
[1725568768217,1.35283748,128.73,128.72,7.7688]
[1725568773435,1.35283748,128.73,128.71,52.7691]
[1725568774324,1.35283748,128.73,128.72,5.75567173]
[1725568774513,1.35283748,128.73,128.72,5.75534211]
[1725568774933,1.35283748,128.73,128.72,5.75483403]
[1725568776334,1.35283748,128.73,128.72,5.75547167]
[1725568776539,1.35283748,128.73,128.7,27.1942]
[1725568776736,1.35283748,128.73,128.71,5.75460531]
[1725568776939,1.35283748,128.73,128.7,27.1942]
[1725568777124,1.35283748,128.73,128.71,5.75141058]
[1725568777433,1.35283748,128.73,128.7,27.1942]
[1725568777642,1.35283748,128.73,128.71,5.75173421]
[1725568777829,1.35283748,128.73,128.7,27.1942]
[1725568779018,1.35283748,128.73,128.71,5.75320662]
[1725568779240,1.35283748,128.73,128.7,27.1942]
[1725568779441,1.35283748,128.73,128.71,5.75121742]
[1725568779738,1.35283748,128.73,128.7,27.1942]
[1725568779940,3.01097665,128.73,128.69,15.9966]
[1725568780244,3.01097665,128.73,128.7,5.75178529]
[1725568780245,1.35283748,128.73,128.7,5.75178529]
[1725568780417,1.35283748,128.73,128.69,15.9966]
[1725568780418,3.01097665,128.73,128.69,15.9966]
[1725568780617,3.01097665,128.73,128.68,20.71137275]